[Event "Late-Titled-Tuesday-Blitz-October-03-2023"]
[Site "Chess.com"]
[Date "2023.10.03"]
[Round "11"]
[White "vanyakuba"]
[Black "Yushko_Olga"]
[Result "1-0"]
[WhiteElo "2357"]
[BlackElo "2118"]
[TimeControl "180+1"]
[EndTime "16:03:03 PDT"]
[Termination "vanyakuba won by resignation"]

1. c4 {[%clk 0:03:00.9]} 1... e6 {[%clk 0:03:00]} 2. Nc3 {[%clk 0:03:00.5]} 2...
f5 {[%clk 0:03:00.9]} 3. g3 {[%clk 0:03:00.1]} 3... Nf6 {[%clk 0:03:01.1]} 4.
Bg2 {[%clk 0:03:00.8]} 4... d6 {[%clk 0:03:01.8]} 5. d4 {[%clk 0:02:58]} 5...
Be7 {[%clk 0:02:58]} 6. Nf3 {[%clk 0:02:57.8]} 6... O-O {[%clk 0:02:58.1]} 7.
O-O {[%clk 0:02:58.5]} 7... Qe8 {[%clk 0:02:57.8]} 8. Re1 {[%clk 0:02:55.8]}
8... Ne4 {[%clk 0:02:58.2]} 9. Qd3 {[%clk 0:02:45.7]} 9... Qg6 {[%clk
0:02:52.8]} 10. Nd2 {[%clk 0:02:36.3]} 10... Nxd2 {[%clk 0:02:52.6]} 11. Bxd2
{[%clk 0:02:33.6]} 11... Kh8 {[%clk 0:02:48.9]} 12. e4 {[%clk 0:02:32.5]} 12...
e5 {[%clk 0:02:46.7]} 13. Nd5 {[%clk 0:01:32.4]} 13... Bd8 {[%clk 0:02:43.6]}
14. dxe5 {[%clk 0:01:17.6]} 14... dxe5 {[%clk 0:02:43.4]} 15. Bb4 {[%clk
0:01:16.3]} 15... Re8 {[%clk 0:02:40.3]} 16. exf5 {[%clk 0:01:03.1]} 16... Bxf5
{[%clk 0:02:39.3]} 17. Be4 {[%clk 0:01:03.1]} 17... Bxe4 {[%clk 0:02:38.3]} 18.
Qxe4 {[%clk 0:01:02.9]} 18... Qxe4 {[%clk 0:02:38.2]} 19. Rxe4 {[%clk
0:01:03.8]} 19... c6 {[%clk 0:02:38.4]} 20. Nc3 {[%clk 0:00:52.9]} 20... Nd7
{[%clk 0:02:38.3]} 21. Rae1 {[%clk 0:00:48.5]} 21... Bc7 {[%clk 0:02:31.5]} 22.
Kg2 {[%clk 0:00:42]} 22... Nf6 {[%clk 0:02:29.2]} 23. R4e2 {[%clk 0:00:42.1]}
23... Red8 {[%clk 0:02:26.1]} 24. Ne4 {[%clk 0:00:37.4]} 24... Rd3 {[%clk
0:02:21.5]} 25. Bc3 {[%clk 0:00:35.8]} 25... Rad8 {[%clk 0:02:16]} 26. Ng5
{[%clk 0:00:33]} 26... Kg8 {[%clk 0:02:11.8]} 27. Ne6 {[%clk 0:00:32.9]} 27...
R8d7 {[%clk 0:02:08.1]} 28. Nxc7 {[%clk 0:00:32.9]} 28... Rxc7 {[%clk
0:02:08.7]} 29. Bxe5 {[%clk 0:00:33.6]} 29... Rf7 {[%clk 0:02:03.9]} 30. h3
{[%clk 0:00:31]} 30... Nd7 {[%clk 0:02:00.4]} 31. Bc3 {[%clk 0:00:28.7]} 31...
Nb6 {[%clk 0:01:57.9]} 32. Re8+ {[%clk 0:00:28.4]} 32... Rf8 {[%clk 0:01:58.8]}
33. R8e7 {[%clk 0:00:23.5]} 33... Rf7 {[%clk 0:01:58.3]} 34. Re8+ {[%clk
0:00:22.3]} 34... Rf8 {[%clk 0:01:58.8]} 35. R1e7 {[%clk 0:00:23]} 35... Rxe8
{[%clk 0:01:58]} 36. Rxe8+ {[%clk 0:00:22.9]} 36... Kf7 {[%clk 0:01:58.9]} 37.
Rb8 {[%clk 0:00:23]} 37... Rd7 {[%clk 0:01:56.9]} 38. b3 {[%clk 0:00:22.5]}
38... Rc7 {[%clk 0:01:51.9]} 39. Be5 {[%clk 0:00:22]} 39... Re7 {[%clk 0:01:51]}
40. Bf4 {[%clk 0:00:20.5]} 40... h6 {[%clk 0:01:49.4]} 41. h4 {[%clk 0:00:20.8]}
41... Rd7 {[%clk 0:01:43.1]} 42. a4 {[%clk 0:00:20.3]} 42... a5 {[%clk
0:01:42.5]} 43. Be3 {[%clk 0:00:19.1]} 43... Nxc4 {[%clk 0:01:36.1]} 44. bxc4
{[%clk 0:00:20]} 44... Ke6 {[%clk 0:01:35.9]} 45. Bb6 {[%clk 0:00:19.7]} 45...
Ke5 {[%clk 0:01:33.8]} 46. Bxa5 {[%clk 0:00:19.7]} 46... Kd4 {[%clk 0:01:33.4]}
47. Bb6+ {[%clk 0:00:16.8]} 47... Kxc4 {[%clk 0:01:33.7]} 48. a5 {[%clk
0:00:17.7]} 48... Kb5 {[%clk 0:01:33.3]} 49. Rc8 {[%clk 0:00:17]} 49... Rd5
{[%clk 0:01:32]} 50. g4 {[%clk 0:00:16.3]} 50... c5 {[%clk 0:01:32.1]} 51. Kg3
{[%clk 0:00:14.8]} 51... c4 {[%clk 0:01:32.6]} 52. f4 {[%clk 0:00:11.4]} 52...
Rd3+ {[%clk 0:01:32]} 53. Kf2 {[%clk 0:00:11.9]} 53... Rh3 {[%clk 0:01:31.1]}
54. h5 {[%clk 0:00:10.5]} 54... c3 {[%clk 0:01:31]} 55. Kg2 {[%clk 0:00:08.8]}
55... Rd3 {[%clk 0:01:31]} 56. g5 {[%clk 0:00:08]} 56... hxg5 {[%clk 0:01:30.5]}
57. fxg5 {[%clk 0:00:08.5]} 57... Rd2+ {[%clk 0:01:30.4]} 58. Bf2 {[%clk
0:00:08.1]} 58... c2 {[%clk 0:01:29.8]} 59. h6 {[%clk 0:00:07.2]} 59... gxh6
{[%clk 0:01:27.8]} 60. gxh6 {[%clk 0:00:08.1]} 60... Rd6 {[%clk 0:01:27.4]} 61.
Be3 {[%clk 0:00:08.1]} 61... Rg6+ {[%clk 0:01:26.9]} 62. Kf3 {[%clk 0:00:08.2]}
62... Rf6+ {[%clk 0:01:26.6]} 63. Ke2 {[%clk 0:00:08.3]} 63... Rf7 {[%clk
0:01:27]} 64. Rxc2 {[%clk 0:00:06.8]} 64... Kxa5 {[%clk 0:01:27.1]} 65. Rc5+
{[%clk 0:00:06]} 65... b5 {[%clk 0:01:26.8]} 66. Rc6 {[%clk 0:00:04.7]} 66... b4
{[%clk 0:01:26.3]} 67. Rg6 {[%clk 0:00:04.8]} 67... Rh7 {[%clk 0:01:24.2]} 68.
Rg7 {[%clk 0:00:04.7]} 68... Rh8 {[%clk 0:01:24.4]} 69. h7 {[%clk 0:00:04.8]}
69... b3 {[%clk 0:01:24.3]} 70. Bd4 {[%clk 0:00:05.2]} 70... Re8+ {[%clk
0:01:23.5]} 71. Kd3 {[%clk 0:00:05]} 71... Ka4 {[%clk 0:01:21.7]} 72. Ra7+
{[%clk 0:00:04.2]} 72... Kb5 {[%clk 0:01:21.2]} 73. h8=Q {[%clk 0:00:04.3]}
73... Rxh8 {[%clk 0:01:18.5]} 74. Bxh8 {[%clk 0:00:05.2]} 74... Kb6 {[%clk
0:01:17.4]} 75. Bd4+ {[%clk 0:00:05.3]} 75... Kb5 {[%clk 0:01:17.5]} 76. Rb7+
{[%clk 0:00:05.4]} 76... Ka4 {[%clk 0:01:17.4]} 77. Bb2 {[%clk 0:00:05.7]} 77...
Ka5 {[%clk 0:01:16.1]} 78. Kc4 {[%clk 0:00:06]} 78... Ka6 {[%clk 0:01:15.2]} 79.
Rxb3 {[%clk 0:00:05.6]} 79... Ka5 {[%clk 0:01:15.6]} 80. Bc3+ {[%clk 0:00:06]}
80... Ka6 {[%clk 0:01:15.5]} 81. Kc5 {[%clk 0:00:06.6]} 81... Ka7 {[%clk
0:01:14.2]} 82. Kc6 {[%clk 0:00:07.2]} 82... Ka8 {[%clk 0:01:13.9]} 83. Kc7
{[%clk 0:00:07.3]} 1-0

[Event "Late-Titled-Tuesday-Blitz-October-03-2023"]
[Site "Chess.com"]
[Date "2023.10.03"]
[Round "11"]
[White "Zhigalko_Sergei"]
[Black "KaydenTroffChess"]
[Result "0-1"]
[WhiteElo "2950"]
[BlackElo "2804"]
[TimeControl "180+1"]
[EndTime "16:03:08 PDT"]
[Termination "KaydenTroffChess won on time"]

1. e4 {[%clk 0:03:00.9]} 1... c5 {[%clk 0:03:00.1]} 2. c3 {[%clk 0:03:01.1]}
2... g6 {[%clk 0:02:59.8]} 3. d4 {[%clk 0:03:01.6]} 3... cxd4 {[%clk 0:03:00.7]}
4. cxd4 {[%clk 0:03:02.5]} 4... d5 {[%clk 0:03:01]} 5. e5 {[%clk 0:03:02.7]}
5... Nc6 {[%clk 0:03:00.7]} 6. Nf3 {[%clk 0:03:03.2]} 6... Bg7 {[%clk
0:03:00.9]} 7. Bb5 {[%clk 0:03:03.4]} 7... Nh6 {[%clk 0:03:00.9]} 8. O-O {[%clk
0:03:03.3]} 8... O-O {[%clk 0:03:00.7]} 9. Bxc6 {[%clk 0:03:01.3]} 9... bxc6
{[%clk 0:03:01.6]} 10. Re1 {[%clk 0:03:01.6]} 10... Bg4 {[%clk 0:03:01.7]} 11.
Nbd2 {[%clk 0:03:01.7]} 11... f6 {[%clk 0:02:54.6]} 12. h3 {[%clk 0:03:01.9]}
12... Bxf3 {[%clk 0:02:32.1]} 13. Nxf3 {[%clk 0:03:02.2]} 13... Nf7 {[%clk
0:02:20.1]} 14. Bf4 {[%clk 0:02:54.9]} 14... fxe5 {[%clk 0:02:17.6]} 15. Nxe5
{[%clk 0:02:54.6]} 15... Nxe5 {[%clk 0:02:15.2]} 16. Bxe5 {[%clk 0:02:55.5]}
16... Bxe5 {[%clk 0:02:09.2]} 17. Rxe5 {[%clk 0:02:56.4]} 17... Qd7 {[%clk
0:02:08]} 18. Qe2 {[%clk 0:02:53.1]} 18... Rf7 {[%clk 0:02:07.3]} 19. Re1 {[%clk
0:02:53.1]} 19... Kf8 {[%clk 0:02:06.2]} 20. h4 {[%clk 0:02:39.9]} 20... Rb8
{[%clk 0:02:02.8]} 21. h5 {[%clk 0:02:39.2]} 21... Rb7 {[%clk 0:01:52.5]} 22. b3
{[%clk 0:01:25.7]} 22... Qd6 {[%clk 0:00:55.6]} 23. Re6 {[%clk 0:01:22.4]} 23...
Qf4 {[%clk 0:00:50.3]} 24. hxg6 {[%clk 0:01:12.1]} 24... hxg6 {[%clk 0:00:49.8]}
25. Rxg6 {[%clk 0:01:07.2]} 25... Qxd4 {[%clk 0:00:27]} 26. Rxc6 {[%clk
0:01:06.8]} 26... Rb6 {[%clk 0:00:24.9]} 27. Rxb6 {[%clk 0:00:36.2]} 27... axb6
{[%clk 0:00:22.6]} 28. Rd1 {[%clk 0:00:35.9]} 28... Qc5 {[%clk 0:00:20.6]} 29.
Qd2 {[%clk 0:00:29.3]} 29... e6 {[%clk 0:00:19.1]} 30. a4 {[%clk 0:00:24.3]}
30... Ke7 {[%clk 0:00:17.5]} 31. Rc1 {[%clk 0:00:13.1]} 31... Qd6 {[%clk
0:00:17.8]} 32. b4 {[%clk 0:00:10.4]} 32... Qf4 {[%clk 0:00:17]} 33. Qb2 {[%clk
0:00:03.7]} 33... Qf6 {[%clk 0:00:11.6]} 34. Qxf6+ {[%clk 0:00:03.2]} 34... Rxf6
{[%clk 0:00:11.5]} 35. Rc6 {[%clk 0:00:03.6]} 35... b5 {[%clk 0:00:09]} 36. axb5
{[%clk 0:00:02.8]} 36... Rf4 {[%clk 0:00:09.2]} 37. b6 {[%clk 0:00:02.1]} 37...
Rxb4 {[%clk 0:00:09.5]} 38. g3 {[%clk 0:00:02.6]} 38... Kd7 {[%clk 0:00:09.4]}
39. Rc7+ {[%clk 0:00:03]} 39... Kd6 {[%clk 0:00:10]} 40. Rc8 {[%clk 0:00:02.8]}
40... Rxb6 {[%clk 0:00:09.6]} 41. Kg2 {[%clk 0:00:03.6]} 41... Ke5 {[%clk
0:00:10]} 42. g4 {[%clk 0:00:03.5]} 42... Rb4 {[%clk 0:00:10.3]} 43. Kg3 {[%clk
0:00:03.7]} 43... Rb1 {[%clk 0:00:11]} 44. Re8 {[%clk 0:00:03]} 44... Rg1+
{[%clk 0:00:10.7]} 45. Kf3 {[%clk 0:00:03.6]} 45... Kf6 {[%clk 0:00:10.9]} 46.
Rf8+ {[%clk 0:00:03.6]} 46... Ke5 {[%clk 0:00:11.4]} 47. Re8 {[%clk 0:00:03.4]}
47... Rb1 {[%clk 0:00:11.9]} 48. Rf8 {[%clk 0:00:03.1]} 48... Rb3+ {[%clk
0:00:12]} 49. Kg2 {[%clk 0:00:02]} 49... Rb1 {[%clk 0:00:12.4]} 50. g5 {[%clk
0:00:02.4]} 50... Rb7 {[%clk 0:00:11.2]} 51. Kg3 {[%clk 0:00:02.5]} 51... Rb1
{[%clk 0:00:11.6]} 52. Kg2 {[%clk 0:00:02.3]} 52... Rb7 {[%clk 0:00:11]} 53. Kg3
{[%clk 0:00:02.7]} 53... Rb1 {[%clk 0:00:10.9]} 54. Re8 {[%clk 0:00:03]} 54...
Kf5 {[%clk 0:00:10.8]} 55. Re7 {[%clk 0:00:02.6]} 55... Rg1+ {[%clk 0:00:10.2]}
56. Kh4 {[%clk 0:00:02.9]} 56... Rg4+ {[%clk 0:00:10.6]} 57. Kh3 {[%clk
0:00:03.1]} 57... Rxg5 {[%clk 0:00:11.2]} 58. Rf7+ {[%clk 0:00:03.3]} 58... Ke4
{[%clk 0:00:11.3]} 59. f3+ {[%clk 0:00:03.7]} 59... Ke3 {[%clk 0:00:11.4]} 60.
Kh4 {[%clk 0:00:04.3]} 60... Rf5 {[%clk 0:00:11.2]} 61. Re7 {[%clk 0:00:03.6]}
61... e5 {[%clk 0:00:11.7]} 62. Kg4 {[%clk 0:00:04.2]} 62... Rf4+ {[%clk
0:00:12.1]} 63. Kg5 {[%clk 0:00:04.8]} 63... Kd4 {[%clk 0:00:12.4]} 64. Ra7
{[%clk 0:00:03]} 64... Rxf3 {[%clk 0:00:12.7]} 65. Kg4 {[%clk 0:00:03.9]} 65...
Rf4+ {[%clk 0:00:12.6]} 66. Kg3 {[%clk 0:00:04.5]} 66... Ke4 {[%clk 0:00:13.3]}
67. Ra4+ {[%clk 0:00:04.4]} 67... d4 {[%clk 0:00:13.8]} 68. Ra8 {[%clk
0:00:05.3]} 68... Rf3+ {[%clk 0:00:14.3]} 69. Kg4 {[%clk 0:00:05.5]} 69... Rf7
{[%clk 0:00:14.1]} 70. Kg5 {[%clk 0:00:05.4]} 70... d3 {[%clk 0:00:14.3]} 71.
Ra4+ {[%clk 0:00:05.2]} 71... Ke3 {[%clk 0:00:14.4]} 72. Ra7 {[%clk 0:00:06.1]}
72... Rxa7 {[%clk 0:00:14]} 0-1

[Event "Late-Titled-Tuesday-Blitz-October-03-2023"]
[Site "Chess.com"]
[Date "2023.10.03"]
[Round "11"]
[White "Iball95"]
[Black "Aswathchess"]
[Result "1-0"]
[WhiteElo "2776"]
[BlackElo "2606"]
[TimeControl "180+1"]
[EndTime "16:03:13 PDT"]
[Termination "Iball95 won by resignation"]

1. e4 {[%clk 0:02:59.8]} 1... g6 {[%clk 0:02:59.3]} 2. d4 {[%clk 0:02:59.9]}
2... Bg7 {[%clk 0:03:00]} 3. Nf3 {[%clk 0:03:00.8]} 3... d6 {[%clk 0:03:00.1]}
4. Nc3 {[%clk 0:03:01.6]} 4... a6 {[%clk 0:02:59.4]} 5. Be3 {[%clk 0:03:02]}
5... b5 {[%clk 0:02:58.1]} 6. h4 {[%clk 0:03:02.8]} 6... h6 {[%clk 0:02:57.9]}
7. e5 {[%clk 0:03:02.7]} 7... Bb7 {[%clk 0:02:55.7]} 8. Bd3 {[%clk 0:03:01.3]}
8... e6 {[%clk 0:02:52.5]} 9. Be4 {[%clk 0:03:00.1]} 9... Bxe4 {[%clk
0:02:50.3]} 10. Nxe4 {[%clk 0:03:01]} 10... dxe5 {[%clk 0:02:47.9]} 11. Nxe5
{[%clk 0:02:55.2]} 11... Bxe5 {[%clk 0:02:26.7]} 12. dxe5 {[%clk 0:02:56.1]}
12... Qxd1+ {[%clk 0:02:22.3]} 13. Rxd1 {[%clk 0:02:57]} 13... Nd7 {[%clk
0:02:22.5]} 14. f4 {[%clk 0:02:51.2]} 14... Ne7 {[%clk 0:02:22.1]} 15. Ke2
{[%clk 0:02:44]} 15... Nd5 {[%clk 0:02:17.7]} 16. c3 {[%clk 0:02:44.3]} 16...
O-O-O {[%clk 0:02:05.2]} 17. Kf3 {[%clk 0:02:28.4]} 17... h5 {[%clk 0:01:48.3]}
18. Rd2 {[%clk 0:02:25.6]} 18... Rhf8 {[%clk 0:01:38.4]} 19. Rhd1 {[%clk
0:02:20.8]} 19... f6 {[%clk 0:01:36.5]} 20. exf6 {[%clk 0:02:19.9]} 20... N7xf6
{[%clk 0:01:36.5]} 21. g3 {[%clk 0:02:10.9]} 21... Nxe4 {[%clk 0:01:25]} 22.
Kxe4 {[%clk 0:02:11.8]} 22... c6 {[%clk 0:01:24.7]} 23. Bd4 {[%clk 0:02:10.9]}
23... Rf7 {[%clk 0:01:06.3]} 24. Be5 {[%clk 0:02:03.7]} 24... Rfd7 {[%clk
0:01:05.7]} 25. Bd4 {[%clk 0:01:42.7]} 25... c5 {[%clk 0:00:50.9]} 26. Be5
{[%clk 0:01:34.2]} 26... Nf6+ {[%clk 0:00:50.8]} 27. Ke3 {[%clk 0:01:32.7]}
27... Rxd2 {[%clk 0:00:48.8]} 28. Rxd2 {[%clk 0:01:33.5]} 28... Rxd2 {[%clk
0:00:41.4]} 29. Kxd2 {[%clk 0:01:34.4]} 29... Ne4+ {[%clk 0:00:42]} 30. Kd3
{[%clk 0:01:22.6]} 30... Nxg3 {[%clk 0:00:42.9]} 31. c4 {[%clk 0:01:22.6]} 31...
Nf5 {[%clk 0:00:39.7]} 32. Bf6 {[%clk 0:01:23]} 32... Kd7 {[%clk 0:00:36.9]} 33.
b3 {[%clk 0:01:23]} 33... Kc6 {[%clk 0:00:36.1]} 34. Bg5 {[%clk 0:01:13.4]}
34... Nd6 {[%clk 0:00:33]} 35. Be7 {[%clk 0:01:08.1]} 35... bxc4+ {[%clk
0:00:28.2]} 36. bxc4 {[%clk 0:01:09]} 36... Nc8 {[%clk 0:00:27.5]} 37. Bf6
{[%clk 0:01:07.6]} 37... Kb6 {[%clk 0:00:25.3]} 38. Bd8+ {[%clk 0:01:05.9]}
38... Kc6 {[%clk 0:00:24.7]} 39. Bf6 {[%clk 0:01:06.8]} 39... Nd6 {[%clk
0:00:23.8]} 40. Be7 {[%clk 0:01:04.9]} 40... Kd7 {[%clk 0:00:23.5]} 41. Bf6
{[%clk 0:01:00.7]} 41... Ke8 {[%clk 0:00:20.4]} 42. Be5 {[%clk 0:00:56.2]} 42...
Nf5 {[%clk 0:00:18.6]} 43. Bf6 {[%clk 0:00:56.8]} 43... Kf7 {[%clk 0:00:18.8]}
44. Bd8 {[%clk 0:00:54.2]} 44... Nd6 {[%clk 0:00:17.3]} 45. Bg5 {[%clk
0:00:52.6]} 45... Ke8 {[%clk 0:00:16.5]} 46. Bf6 {[%clk 0:00:52.4]} 46... Kd7
{[%clk 0:00:16.9]} 47. Be5 {[%clk 0:00:50.9]} 47... Nf7 {[%clk 0:00:17.5]} 48.
Bf6 {[%clk 0:00:50.9]} 48... a5 {[%clk 0:00:17.4]} 49. Kc3 {[%clk 0:00:49.8]}
49... Nd6 {[%clk 0:00:17.2]} 50. Kb3 {[%clk 0:00:46.4]} 50... Ne4 {[%clk
0:00:17.1]} 51. Be5 {[%clk 0:00:43.1]} 51... Nd2+ {[%clk 0:00:15.6]} 52. Kc3
{[%clk 0:00:43.6]} 52... Nf3 {[%clk 0:00:14.5]} 53. Bf6 {[%clk 0:00:44.2]} 53...
a4 {[%clk 0:00:14.7]} 54. Kd3 {[%clk 0:00:42.9]} 54... Ng1 {[%clk 0:00:12.3]}
55. Ke3 {[%clk 0:00:40.5]} 55... Nh3 {[%clk 0:00:05.8]} 56. Kf3 {[%clk
0:00:34.6]} 56... Ke8 {[%clk 0:00:05.8]} 57. Be5 {[%clk 0:00:34]} 57... Ng1+
{[%clk 0:00:05.5]} 58. Kf2 {[%clk 0:00:33.7]} 58... Nh3+ {[%clk 0:00:04.4]} 59.
Kg2 {[%clk 0:00:34.1]} 59... Nxf4+ {[%clk 0:00:04.5]} 60. Bxf4 {[%clk 0:00:35]}
60... Ke7 {[%clk 0:00:04.9]} 61. Kf3 {[%clk 0:00:35.6]} 61... Kf6 {[%clk
0:00:03.3]} 62. Ke4 {[%clk 0:00:35.6]} 62... a3 {[%clk 0:00:02.1]} 63. Bg5+
{[%clk 0:00:35.9]} 63... Kf7 {[%clk 0:00:02.2]} 64. Ke5 {[%clk 0:00:36.8]} 64...
Ke8 {[%clk 0:00:02.5]} 65. Kxe6 {[%clk 0:00:37.7]} 65... Kf8 {[%clk 0:00:03.1]}
66. Kd6 {[%clk 0:00:38.6]} 66... Kg7 {[%clk 0:00:03.6]} 67. Kxc5 {[%clk
0:00:39.5]} 67... Kf7 {[%clk 0:00:04.5]} 68. Kb4 {[%clk 0:00:40.4]} 68... Kg7
{[%clk 0:00:05.2]} 69. Kxa3 {[%clk 0:00:41.3]} 69... Kf7 {[%clk 0:00:06.1]} 70.
Kb4 {[%clk 0:00:42.2]} 70... Ke6 {[%clk 0:00:07]} 71. a4 {[%clk 0:00:43.1]}
71... Kf5 {[%clk 0:00:07.9]} 72. a5 {[%clk 0:00:44]} 1-0

[Event "Late-Titled-Tuesday-Blitz-October-03-2023"]
[Site "Chess.com"]
[Date "2023.10.03"]
[Round "11"]
[White "LeninGuerra"]
[Black "arminmusovic"]
[Result "1/2-1/2"]
[WhiteElo "2581"]
[BlackElo "2505"]
[TimeControl "180+1"]
[EndTime "16:03:18 PDT"]
[Termination "Game drawn - insufficient material"]

1. e4 {[%clk 0:03:00.9]} 1... c6 {[%clk 0:02:56.6]} 2. c4 {[%clk 0:02:59.2]}
2... e6 {[%clk 0:02:56.1]} 3. Nf3 {[%clk 0:02:58.4]} 3... Bb4 {[%clk 0:02:54.3]}
4. a3 {[%clk 0:02:57.6]} 4... Ba5 {[%clk 0:02:54.7]} 5. b4 {[%clk 0:02:57.7]}
5... Bc7 {[%clk 0:02:55.1]} 6. Bb2 {[%clk 0:02:57.6]} 6... Nf6 {[%clk
0:02:53.9]} 7. e5 {[%clk 0:02:57.2]} 7... Ng8 {[%clk 0:02:54.4]} 8. c5 {[%clk
0:02:55.5]} 8... Ne7 {[%clk 0:02:53.2]} 9. Bd3 {[%clk 0:02:54.6]} 9... h6 {[%clk
0:02:52.3]} 10. O-O {[%clk 0:02:54.5]} 10... a5 {[%clk 0:02:52.2]} 11. Nc3
{[%clk 0:02:54.3]} 11... b6 {[%clk 0:02:52.6]} 12. Ne4 {[%clk 0:02:53.6]} 12...
Kf8 {[%clk 0:02:52]} 13. Nh4 {[%clk 0:02:51.4]} 13... Ba6 {[%clk 0:02:48.5]} 14.
Qf3 {[%clk 0:02:42.9]} 14... Bxd3 {[%clk 0:02:41.7]} 15. Qxd3 {[%clk 0:02:43.8]}
15... Nd5 {[%clk 0:02:34.7]} 16. Qg3 {[%clk 0:02:37.8]} 16... axb4 {[%clk
0:02:28]} 17. axb4 {[%clk 0:02:38.7]} 17... Na6 {[%clk 0:02:28]} 18. b5 {[%clk
0:02:24.8]} 18... Nxc5 {[%clk 0:02:24.4]} 19. Rxa8 {[%clk 0:02:21.6]} 19... Qxa8
{[%clk 0:02:24.2]} 20. Ba3 {[%clk 0:02:19.7]} 20... d6 {[%clk 0:02:02.6]} 21.
exd6 {[%clk 0:02:19.1]} 21... Nxe4 {[%clk 0:01:59.7]} 22. dxc7+ {[%clk
0:02:19.3]} 22... Kg8 {[%clk 0:01:58.9]} 23. Qe5 {[%clk 0:02:15.9]} 23... Nef6
{[%clk 0:01:30.3]} 24. Qd6 {[%clk 0:02:08.3]} 24... Nxc7 {[%clk 0:01:26.4]} 25.
bxc6 {[%clk 0:02:03.7]} 25... Nb5 {[%clk 0:01:19.9]} 26. Qb4 {[%clk 0:02:03.5]}
26... Nxa3 {[%clk 0:01:11.3]} 27. Ra1 {[%clk 0:01:46.7]} 27... Qxc6 {[%clk
0:01:08.2]} 28. Qxa3 {[%clk 0:01:45.9]} 28... Kh7 {[%clk 0:00:58.2]} 29. Qd3+
{[%clk 0:01:42.7]} 29... Qe4 {[%clk 0:00:56.9]} 30. Qxe4+ {[%clk 0:01:36.2]}
30... Nxe4 {[%clk 0:00:57.8]} 31. Nf3 {[%clk 0:01:36.3]} 31... Rd8 {[%clk
0:00:57.1]} 32. Ra2 {[%clk 0:01:34.1]} 32... g5 {[%clk 0:00:44.7]} 33. h3 {[%clk
0:01:33.2]} 33... Rd6 {[%clk 0:00:38.9]} 34. Kf1 {[%clk 0:01:33.2]} 34... Kg7
{[%clk 0:00:37.8]} 35. Ke2 {[%clk 0:01:30.8]} 35... b5 {[%clk 0:00:33.1]} 36.
Rb2 {[%clk 0:01:30.7]} 36... Rb6 {[%clk 0:00:33.1]} 37. Rb4 {[%clk 0:01:29.3]}
37... Nd6 {[%clk 0:00:33]} 38. Nd4 {[%clk 0:01:28]} 38... e5 {[%clk 0:00:28.8]}
39. Nb3 {[%clk 0:01:27.8]} 39... f5 {[%clk 0:00:28.6]} 40. Nc5 {[%clk
0:01:26.4]} 40... Kf7 {[%clk 0:00:27.5]} 41. Nd7 {[%clk 0:01:25.8]} 41... Ra6
{[%clk 0:00:25.3]} 42. Nxe5+ {[%clk 0:01:26.1]} 42... Ke6 {[%clk 0:00:26]} 43.
Nf3 {[%clk 0:01:25.7]} 43... Kd5 {[%clk 0:00:25.7]} 44. Ne1 {[%clk 0:01:16.4]}
44... Ra4 {[%clk 0:00:24.5]} 45. Rb2 {[%clk 0:01:15]} 45... b4 {[%clk
0:00:24.1]} 46. Nd3 {[%clk 0:01:13.5]} 46... Kc4 {[%clk 0:00:22]} 47. Rc2+
{[%clk 0:01:13.5]} 47... Kd4 {[%clk 0:00:20.7]} 48. Rc6 {[%clk 0:01:11.2]} 48...
Ne4 {[%clk 0:00:17.6]} 49. Rb6 {[%clk 0:01:10]} 49... h5 {[%clk 0:00:11.7]} 50.
Rxb4+ {[%clk 0:01:06.7]} 50... Rxb4 {[%clk 0:00:11.8]} 51. Nxb4 {[%clk
0:01:07.1]} 51... g4 {[%clk 0:00:10.5]} 52. Nc2+ {[%clk 0:01:06.8]} 52... Ke5
{[%clk 0:00:10.8]} 53. hxg4 {[%clk 0:01:05.4]} 53... fxg4 {[%clk 0:00:11.2]} 54.
Ke3 {[%clk 0:01:04.5]} 54... Nf6 {[%clk 0:00:10.7]} 55. Nb4 {[%clk 0:00:59]}
55... h4 {[%clk 0:00:10.2]} 56. Nc6+ {[%clk 0:00:53.8]} 56... Kf5 {[%clk
0:00:09]} 57. Nd4+ {[%clk 0:00:53.6]} 57... Ke5 {[%clk 0:00:09.6]} 58. f4+
{[%clk 0:00:52.3]} 58... Kd5 {[%clk 0:00:07.7]} 59. Nf5 {[%clk 0:00:38]} 59...
h3 {[%clk 0:00:07.3]} 60. gxh3 {[%clk 0:00:38.3]} 60... gxh3 {[%clk 0:00:08.2]}
61. Kf3 {[%clk 0:00:37.1]} 61... h2 {[%clk 0:00:08.8]} 62. Ne3+ {[%clk
0:00:27.6]} 62... Kd4 {[%clk 0:00:09.4]} 63. Kg2 {[%clk 0:00:20.8]} 63... Ke4
{[%clk 0:00:07.9]} 64. f5 {[%clk 0:00:19.5]} 64... Kd3 {[%clk 0:00:06.4]} 65.
Nf1 {[%clk 0:00:18]} 65... Ke2 {[%clk 0:00:03.9]} 66. Ng3+ {[%clk 0:00:17.6]}
66... Kxd2 {[%clk 0:00:04]} 67. Kxh2 {[%clk 0:00:18.5]} 67... Ke3 {[%clk
0:00:04.5]} 68. Kh3 {[%clk 0:00:18.3]} 68... Kf4 {[%clk 0:00:05]} 69. Kh4 {[%clk
0:00:18.9]} 69... Nd5 {[%clk 0:00:02.6]} 70. Kh5 {[%clk 0:00:12.8]} 70... Kxg3
{[%clk 0:00:02.6]} 71. Kg5 {[%clk 0:00:13.1]} 71... Kf3 {[%clk 0:00:02.9]} 72.
f6 {[%clk 0:00:13.9]} 72... Nxf6 {[%clk 0:00:02.9]} 1/2-1/2